[Event "FIDE Women World Blitz 2021"]
[Site "Warsaw"]
[Date "2021.12.30"]
[Round "10.16"]
[White "Nomin-Erdene, Davaademberel"]
[Black "Lagno, Kateryna"]
[Result "0-1"]
[ECO "C78"]
[WhiteElo "2188"]
[BlackElo "2550"]
[Annotator "ChessBase"]
[PlyCount "100"]
[EventDate "2021.12.29"]
[EventType "swiss"]
[EventCountry "POL"]
[Tiebreak "Cut1 Buchholz"]
[SourceTitle "playchess.com"]
[Source "ChessBase"]
[SourceQuality "1"]
[TimeControl "180+2"]

1. e4 {[%emt 19:33:45]} e5 2. Nf3 Nc6 {[%emt 0:00:01]} 3. Bb5 {[%emt 0:00:01]}
a6 {[%emt 0:00:02]} 4. Ba4 Nf6 {[%emt 0:00:02]} 5. O-O {[%emt 0:00:01]} b5 {
[%emt 0:00:01]} 6. Bb3 Bc5 7. c3 {[%emt 0:00:01]} d6 8. a4 Rb8 {[%emt 0:00:01]}
9. d4 Bb6 {[%emt 0:00:01]} 10. a5 Ba7 {[%emt 0:00:01]} 11. Be3 {[%emt 0:00:04]}
Ra8 {[%emt 0:00:02]} 12. dxe5 {[%emt 0:00:15]} Nxe5 {[%emt 0:00:36]} 13. Nxe5 {
[%emt 0:00:36]} dxe5 {[%emt 0:00:01]} 14. Qxd8+ {[%emt 0:00:11]} Kxd8 {[%emt 0:
00:01]} 15. Bxa7 Rxa7 {[%emt 0:00:01]} 16. Bxf7 {[%emt 0:00:02]} c6 {[%emt 0:
00:10]} 17. Bb3 {[%emt 0:00:29]} Nxe4 {[%emt 0:00:04]} 18. Bc2 {[%emt 0:00:23]}
Nf6 {[%emt 0:00:06]} 19. Nd2 {[%emt 0:00:02]} Re7 {[%emt 0:00:08]} 20. Nb3 {
[%emt 0:00:03]} Kc7 {[%emt 0:00:02]} 21. Nc5 {[%emt 0:00:36]} Rd8 {[%emt 0:00:
02]} 22. Rfd1 {[%emt 0:00:04]} Rd5 {[%emt 0:00:03]} 23. Ne4 {[%emt 0:00:23]}
Rxd1+ {[%emt 0:00:43]} 24. Rxd1 {[%emt 0:00:01]} Bf5 {[%emt 0:00:05]} 25. f3
Bxe4 {[%emt 0:00:07]} 26. Bxe4 {[%emt 0:00:06]} Nxe4 {[%emt 0:00:16]} 27. fxe4
Rf7 28. b3 {[%emt 0:00:17]} Rf4 {[%emt 0:00:07]} 29. Re1 c5 {[%emt 0:00:05]}
30. Re3 g6 {[%emt 0:00:05]} 31. g3 {[%emt 0:00:01]} Rf7 {[%emt 0:00:02]} 32.
Rd3 Kc6 {[%emt 0:00:05]} 33. Kg2 {[%emt 0:00:04]} c4 {[%emt 0:00:26]} 34. bxc4
{[%emt 0:00:02]} bxc4 35. Rd5 Rb7 36. Rxe5 {[%emt 0:00:01]} Rb3 37. Re8 {
[%emt 0:00:13]} Rxc3 {[%emt 0:00:02]} 38. Rc8+ {[%emt 0:00:03]} Kb5 39. e5 {
[%emt 0:00:01]} Re3 40. Rb8+ {[%emt 0:00:04]} Kxa5 {[%emt 0:00:01]} 41. Rc8 Kb4
{[%emt 0:00:02]} 42. Rb8+ {[%emt 0:00:03]} Kc3 {[%emt 0:00:01]} 43. Ra8 {
[%emt 0:00:02]} Rxe5 44. Rxa6 Re7 {[%emt 0:00:03]} 45. Rc6 {[%emt 0:00:03]} Rf7
{[%emt 0:00:01]} 46. g4 {[%emt 0:00:02]} Kd3 {[%emt 0:00:01]} 47. h4 {[%emt 0:
00:02]} c3 {[%emt 0:00:01]} 48. h5 gxh5 {[%emt 0:00:01]} 49. gxh5 c2 50. h6 {
[%emt 0:00:01]} Kd2 {[%emt 0:00:01]} 0-1

[Event "FIDE Women World Blitz 2021"]
[Site "Warsaw"]
[Date "2021.12.30"]
[Round "10.17"]
[White "Mamedjarova, Zeinab"]
[Black "Michna, Marta"]
[Result "1/2-1/2"]
[ECO "B08"]
[WhiteElo "2249"]
[BlackElo "2312"]
[Annotator "NA"]
[PlyCount "151"]
[EventDate "2021.12.29"]
[EventType "swiss"]
[EventCountry "POL"]
[Tiebreak "Cut1 Buchholz"]
[SourceTitle "playchess.com"]
[Source "ChessBase"]
[SourceQuality "1"]
[TimeControl "180+2"]

1. d4 {[%emt 0:00:04]} d6 {[%emt 0:00:04]} 2. Nf3 {[%emt 0:00:01]} g6 {[%emt 0:
00:05]} 3. e3 {[%emt 0:00:14]} Nd7 {[%emt 0:00:09]} 4. Bc4 {[%emt 0:00:11]} e5
{[%emt 0:00:27]} 5. dxe5 {[%emt 0:00:04]} dxe5 {[%emt 0:00:01]} 6. O-O {
[%emt 0:00:31]} Bg7 {[%emt 0:00:25]} 7. e4 {[%emt 0:00:01]} Ngf6 {[%emt 0:00:
24]} 8. Nc3 {[%emt 0:00:17]} O-O {[%emt 0:00:03]} 9. h3 {[%emt 0:00:03]} c6 {
[%emt 0:00:22]} 10. a4 {[%emt 0:00:01]} h6 {[%emt 0:00:17]} 11. Be3 {[%emt 0:
00:09]} Qe7 {[%emt 0:00:02]} 12. Qe2 {[%emt 0:00:06]} Nh5 {[%emt 0:00:13]} 13.
Rfd1 {[%emt 0:00:04]} Nc5 {[%emt 0:00:12]} 14. Nd2 {[%emt 0:00:32]} Ne6 {
[%emt 0:00:07]} 15. a5 {[%emt 0:00:10]} Nef4 {[%emt 0:00:05]} 16. Qf3 {[%emt 0:
00:09]} Be6 {[%emt 0:00:15]} 17. g4 {[%emt 0:00:06]} Qh4 {[%emt 0:00:11]} 18.
Kh2 {[%emt 0:00:11]} Nf6 {[%emt 0:00:06]} 19. Bxf4 {[%emt 0:00:27]} Bxg4 {
[%emt 0:00:02]} 20. Qg3 {[%emt 0:00:06]} Qxg3+ {[%emt 0:00:01]} 21. Bxg3 {
[%emt 0:00:03]} Bxd1 {[%emt 0:00:01]} 22. Rxd1 {[%emt 0:00:01]} Nh5 {[%emt 0:
00:01]} 23. Nf3 {[%emt 0:00:06]} Nxg3 {[%emt 0:00:01]} 24. Kxg3 {[%emt 0:00:02]
} Rfd8 {[%emt 0:00:01]} 25. Rd3 {[%emt 0:00:03]} Rxd3 {[%emt 0:00:01]} 26. cxd3
{[%emt 0:00:03]} Rd8 {[%emt 0:00:01]} 27. Nd1 {[%emt 0:00:02]} Kf8 {[%emt 0:00:
07]} 28. Ne3 {[%emt 0:00:01]} Ke7 {[%emt 0:00:00]} 29. Ng4 {[%emt 0:00:00]} f6
{[%emt 0:00:03]} 30. Ne1 {[%emt 0:00:02]} h5 {[%emt 0:00:01]} 31. Ne3 {[%emt 0:
00:02]} Bh6 {[%emt 0:00:02]} 32. Kf3 {[%emt 0:00:01]} b5 {[%emt 0:00:03]} 33.
axb6 axb6 {[%emt 0:00:00]} 34. b4 {[%emt 0:00:03]} b5 {[%emt 0:00:01]} 35. Bb3
{[%emt 0:00:02]} Ra8 {[%emt 0:00:01]} 36. N1c2 {[%emt 0:00:03]} Bxe3 {[%emt 0:
00:01]} 37. Kxe3 {[%emt 0:00:03]} Kd6 {[%emt 0:00:04]} 38. d4 {[%emt 0:00:00]}
exd4+ {[%emt 0:00:03]} 39. Nxd4 {[%emt 0:00:01]} Ra3 {[%emt 0:00:00]} 40. Kd3 {
[%emt 0:00:02]} Ke5 {[%emt 0:00:03]} 41. Ke3 {[%emt 0:00:01]} Kd6 {[%emt 0:00:
01]} 42. f4 {[%emt 0:00:01]} h4 {[%emt 0:00:02]} 43. Kd2 {[%emt 0:00:02]} Ra1 {
[%emt 0:00:01]} 44. Bf7 {[%emt 0:00:04]} g5 {[%emt 0:00:01]} 45. Nf5+ {[%emt 0:
00:02]} Kc7 {[%emt 0:00:01]} 46. fxg5 {[%emt 0:00:02]} fxg5 {[%emt 0:00:01]}
47. Nd4 {[%emt 0:00:02]} Kd6 {[%emt 0:00:03]} 48. Nf3 {[%emt 0:00:02]} Rh1 {
[%emt 0:00:03]} 49. e5+ {[%emt 0:00:01]} Ke7 {[%emt 0:00:01]} 50. Bh5 {[%emt 0:
00:03]} Rxh3 {[%emt 0:00:01]} 51. Nxg5 {[%emt 0:00:01]} Rh2+ {[%emt 0:00:00]}
52. Be2 {[%emt 0:00:04]} h3 {[%emt 0:00:01]} 53. Ke3 {[%emt 0:00:01]} Rh1 {
[%emt 0:00:01]} 54. Bf3 {[%emt 0:00:02]} Rb1 {[%emt 0:00:02]} 55. Bxc6 {
[%emt 0:00:01]} Rxb4 {[%emt 0:00:01]} 56. Nxh3 {[%emt 0:00:07]} Rb3+ {[%emt 0:
00:01]} 57. Kd4 {[%emt 0:00:02]} Rxh3 {[%emt 0:00:03]} 58. Bxb5 {[%emt 0:00:02]
} Rh2 {[%emt 0:00:01]} 59. Bc4 {[%emt 0:00:01]} Rh5 {[%emt 0:00:02]} 60. Bd5 {
[%emt 0:00:02]} Rh4+ {[%emt 0:00:01]} 61. Kc5 {[%emt 0:00:03]} Kd7 {[%emt 0:00:
01]} 62. e6+ {[%emt 0:00:01]} Ke7 {[%emt 0:00:00]} 63. Bc4 {[%emt 0:00:01]}
Rh5+ {[%emt 0:00:03]} 64. Bd5 {[%emt 0:00:01]} Rg5 {[%emt 0:00:01]} 65. Kc6 {
[%emt 0:00:02]} Rg1 {[%emt 0:00:01]} 66. Bc4 {[%emt 0:00:01]} Rc1 {[%emt 0:00:
01]} 67. Kd5 {[%emt 0:00:01]} Kf6 {[%emt 0:00:02]} 68. Kd4 {[%emt 0:00:02]}
Rd1+ {[%emt 0:00:03]} 69. Kc5 {[%emt 0:00:03]} Rd8 {[%emt 0:00:03]} 70. Bd5 {
[%emt 0:00:02]} Ke5 {[%emt 0:00:01]} 71. Ba2 {[%emt 0:00:08]} Ra8 {[%emt 0:00:
02]} 72. Bc4 {[%emt 0:00:06]} Rc8+ {[%emt 0:00:01]} 73. Kb5 {[%emt 0:00:02]}
Kd4 {[%emt 0:00:02]} 74. Ba2 {[%emt 0:00:02]} Ra8 {[%emt 0:00:03]} 75. Bb3 {
[%emt 0:00:02]} Rb8+ {[%emt 0:00:02]} 76. Kc6 {[%emt 0:00:02]} 1/2-1/2

[Event "FIDE Women World Blitz 2021"]
[Site "Warsaw"]
[Date "2021.12.30"]
[Round "10.18"]
[White "Vantika Agrawal"]
[Black "Mammadova, Gulnar"]
[Result "0-1"]
[ECO "A41"]
[WhiteElo "2329"]
[BlackElo "2395"]
[Annotator "NA"]
[PlyCount "46"]
[EventDate "2021.12.29"]
[EventType "swiss"]
[EventCountry "POL"]
[Tiebreak "Cut1 Buchholz"]
[SourceTitle "playchess.com"]
[Source "ChessBase"]
[SourceQuality "1"]
[TimeControl "180+2"]

1. d4 {[%emt 0:00:02]} g6 {[%emt 0:00:02]} 2. c4 {[%emt 0:00:02]} Bg7 {[%emt 0:
00:00]} 3. Nf3 {[%emt 0:00:03]} d6 {[%emt 0:00:01]} 4. g3 {[%emt 0:00:03]} Nd7
{[%emt 0:00:13]} 5. Bg2 {[%emt 0:00:04]} e5 {[%emt 0:00:01]} 6. Nc3 {[%emt 0:
00:08]} Ne7 {[%emt 0:00:05]} 7. O-O {[%emt 0:00:07]} O-O {[%emt 0:00:02]} 8.
dxe5 {[%emt 0:00:23]} dxe5 {[%emt 0:00:07]} 9. Qc2 {[%emt 0:00:06]} Nc6 {
[%emt 0:00:02]} 10. Rd1 {[%emt 0:00:19]} Nd4 {[%emt 0:00:01]} 11. Nxd4 {
[%emt 0:00:06]} exd4 {[%emt 0:00:01]} 12. Nb5 {[%emt 0:00:09]} c5 {[%emt 0:00:
03]} 13. Bf4 {[%emt 0:00:32]} Ne5 {[%emt 0:00:06]} 14. Rac1 {[%emt 0:00:27]} a6
{[%emt 0:00:02]} 15. Na3 {[%emt 0:00:03]} Qf6 {[%emt 0:00:12]} 16. Qd2 {
[%emt 0:00:10]} Re8 {[%emt 0:00:08]} 17. b3 {[%emt 0:00:07]} Ng4 {[%emt 0:00:
47]} 18. Rf1 {[%emt 0:00:17]} Qb6 {[%emt 0:00:13]} 19. Nc2 {[%emt 0:00:05]} Bf5
{[%emt 0:00:01]} 20. h3 {[%emt 0:00:03]} Nf6 {[%emt 0:00:01]} 21. g4 {[%emt 0:
00:16]} Be4 {[%emt 0:00:06]} 22. f3 {[%emt 0:00:04]} Bc6 {[%emt 0:00:02]} 23.
Ne1 {[%emt 0:00:02]} Re7 {[%emt 0:00:02]} 0-1

[Event "FIDE Women World Blitz 2021"]
[Site "Warsaw"]
[Date "2021.12.30"]
[Round "10.19"]
[White "Muetsch, Annmarie"]
[Black "Girya, Olga"]
[Result "0-1"]
[ECO "A12"]
[WhiteElo "2279"]
[BlackElo "2402"]
[Annotator "NA"]
[PlyCount "116"]
[EventDate "2021.12.29"]
[EventType "swiss"]
[EventCountry "POL"]
[Tiebreak "Cut1 Buchholz"]
[SourceTitle "playchess.com"]
[Source "ChessBase"]
[SourceQuality "1"]
[TimeControl "180+2"]

1. Nf3 {[%emt 0:00:02]} d5 {[%emt 0:00:02]} 2. d3 {[%emt 0:00:03]} Nf6 {
[%emt 0:00:14]} 3. Nbd2 {[%emt 0:00:02]} Bf5 {[%emt 0:00:18]} 4. g3 {[%emt 0:
00:03]} e6 {[%emt 0:00:03]} 5. Bg2 {[%emt 0:00:02]} h6 {[%emt 0:00:03]} 6. O-O
{[%emt 0:00:03]} Be7 {[%emt 0:00:05]} 7. c4 {[%emt 0:00:07]} c6 {[%emt 0:00:01]
} 8. b3 {[%emt 0:00:03]} Nbd7 {[%emt 0:00:01]} 9. Bb2 {[%emt 0:00:01]} O-O {
[%emt 0:00:02]} 10. Re1 {[%emt 0:00:05]} Bh7 {[%emt 0:00:01]} 11. d4 {[%emt 0:
00:08]} a5 {[%emt 0:00:02]} 12. a4 {[%emt 0:00:08]} Bb4 {[%emt 0:00:02]} 13.
Ba3 {[%emt 0:00:20]} Qe7 {[%emt 0:00:06]} 14. Bxb4 {[%emt 0:00:11]} Qxb4 {
[%emt 0:00:01]} 15. Ne5 {[%emt 0:00:18]} Nxe5 {[%emt 0:00:05]} 16. dxe5 {
[%emt 0:00:02]} Nd7 {[%emt 0:00:02]} 17. e4 {[%emt 0:00:17]} d4 {[%emt 0:00:19]
} 18. f4 {[%emt 0:00:08]} Nc5 {[%emt 0:00:07]} 19. Rb1 {[%emt 0:00:17]} Rad8 {
[%emt 0:00:03]} 20. Bh3 {[%emt 0:00:18]} d3 {[%emt 0:00:12]} 21. f5 {[%emt 0:
00:04]} Qc3 {[%emt 0:00:02]} 22. Kh1 {[%emt 0:00:24]} Qxe5 {[%emt 0:00:17]} 23.
Qg4 {[%emt 0:00:01]} Rfe8 {[%emt 0:00:21]} 24. Nf3 {[%emt 0:00:21]} exf5 {
[%emt 0:00:01]} 25. exf5 {[%emt 0:00:08]} Qc3 {[%emt 0:00:07]} 26. Qf4 {
[%emt 0:00:10]} Rxe1+ 27. Rxe1 Kh8 {[%emt 0:00:55]} 28. Qc7 {[%emt 0:00:05]}
Qf6 {[%emt 0:00:12]} 29. Ne5 {[%emt 0:00:03]} Bg8 {[%emt 0:00:04]} 30. Ng4 {
[%emt 0:00:04]} Qg5 {[%emt 0:00:02]} 31. f6 {[%emt 0:00:01]} d2 {[%emt 0:00:01]
} 32. Rd1 {[%emt 0:00:02]} Re8 {[%emt 0:00:03]} 33. fxg7+ {[%emt 0:00:01]} Kxg7
{[%emt 0:00:01]} 34. Kg2 {[%emt 0:00:04]} Re2+ {[%emt 0:00:01]} 35. Kf1 {
[%emt 0:00:01]} Re1+ {[%emt 0:00:04]} 36. Rxe1 {[%emt 0:00:01]} dxe1=R+ {
[%emt 0:00:03]} 37. Kxe1 {[%emt 0:00:01]} Qc1+ {[%emt 0:00:04]} 38. Ke2 {
[%emt 0:00:01]} Qc2+ {[%emt 0:00:01]} 39. Kf1 {[%emt 0:00:01]} Qd3+ {[%emt 0:
00:02]} 40. Kg1 {[%emt 0:00:01]} Qe4 {[%emt 0:00:03]} 41. Qe5+ {[%emt 0:00:02]}
Qxe5 42. Nxe5 {[%emt 0:00:01]} Nxb3 {[%emt 0:00:03]} 43. Bc8 {[%emt 0:00:01]}
Nc5 {[%emt 0:00:02]} 44. Nd7 {[%emt 0:00:02]} Nxd7 {[%emt 0:00:03]} 45. Bxd7 {
[%emt 0:00:01]} c5 {[%emt 0:00:01]} 46. Kf2 {[%emt 0:00:02]} Kf6 {[%emt 0:00:
02]} 47. Ke3 {[%emt 0:00:01]} Ke5 {[%emt 0:00:00]} 48. Bc8 {[%emt 0:00:02]} f5
{[%emt 0:00:03]} 49. Bxb7 {[%emt 0:00:02]} Bxc4 {[%emt 0:00:01]} 50. Bc6 {
[%emt 0:00:01]} Ba6 {[%emt 0:00:02]} 51. h4 {[%emt 0:00:03]} c4 {[%emt 0:00:02]
} 52. Bd7 {[%emt 0:00:01]} Bb7 {[%emt 0:00:02]} 53. Bb5 {[%emt 0:00:02]} Bd5 {
[%emt 0:00:01]} 54. Be8 {[%emt 0:00:02]} Be4 {[%emt 0:00:01]} 55. Bb5 {[%emt 0:
00:02]} Kd5 {[%emt 0:00:01]} 56. Be8 {[%emt 0:00:03]} c3 {[%emt 0:00:03]} 57.
Bb5 {[%emt 0:00:03]} Kc5 {[%emt 0:00:02]} 58. g4 {[%emt 0:00:02]} c2 {[%emt 0:
00:01]} 0-1

[Event "FIDE Women World Blitz 2021"]
[Site "Warsaw"]
[Date "2021.12.30"]
[Round "10.21"]
[White "Balajayeva, Khanim"]
[Black "Bulmaga, Irina"]
[Result "1-0"]
[ECO "B22"]
[WhiteElo "2369"]
[BlackElo "2405"]
[Annotator "NA"]
[PlyCount "85"]
[EventDate "2021.12.29"]
[EventType "swiss"]
[EventCountry "POL"]
[Tiebreak "Cut1 Buchholz"]
[SourceTitle "playchess.com"]
[Source "ChessBase"]
[SourceQuality "1"]
[TimeControl "180+2"]

1. e4 {[%emt 0:00:01]} c5 {[%emt 0:00:02]} 2. c3 {[%emt 0:00:01]} d5 {[%emt 0:
00:02]} 3. exd5 {[%emt 0:00:01]} Qxd5 {[%emt 0:00:01]} 4. d4 {[%emt 0:00:00]}
Nf6 {[%emt 0:00:02]} 5. Nf3 {[%emt 0:00:02]} e6 {[%emt 0:00:02]} 6. Be3 {
[%emt 0:00:04]} Nc6 {[%emt 0:00:02]} 7. Bd3 {[%emt 0:00:15]} Be7 {[%emt 0:00:
04]} 8. O-O {[%emt 0:00:02]} O-O {[%emt 0:00:05]} 9. Qe2 {[%emt 0:00:15]} Rd8 {
[%emt 0:00:04]} 10. h3 {[%emt 0:00:14]} cxd4 {[%emt 0:00:36]} 11. cxd4 {
[%emt 0:00:01]} Nb4 {[%emt 0:00:25]} 12. Nc3 {[%emt 0:00:02]} Qh5 {[%emt 0:00:
05]} 13. Bb1 {[%emt 0:00:10]} b6 {[%emt 0:00:02]} 14. Ne4 {[%emt 0:00:10]} Ba6
{[%emt 0:00:09]} 15. Qe1 {[%emt 0:00:20]} Bxf1 {[%emt 0:00:04]} 16. Qxf1 {
[%emt 0:00:05]} Qd5 {[%emt 0:00:12]} 17. Nc3 {[%emt 0:00:05]} Qd6 {[%emt 0:00:
05]} 18. a3 {[%emt 0:00:21]} Nbd5 {[%emt 0:00:02]} 19. Qd3 {[%emt 0:00:01]} g6
{[%emt 0:00:13]} 20. Ba2 {[%emt 0:00:27]} Rac8 {[%emt 0:00:05]} 21. Bd2 {
[%emt 0:00:21]} Nxc3 {[%emt 0:00:04]} 22. bxc3 {[%emt 0:00:06]} Qxa3 {[%emt 0:
00:08]} 23. Qf1 {[%emt 0:00:09]} Qd6 {[%emt 0:00:04]} 24. Re1 {[%emt 0:00:07]}
Nd5 {[%emt 0:00:08]} 25. Qd3 {[%emt 0:00:02]} Bf6 {[%emt 0:00:02]} 26. h4 {
[%emt 0:00:08]} h5 {[%emt 0:00:05]} 27. Ng5 {[%emt 0:00:08]} Re8 {[%emt 0:00:
09]} 28. Bb1 {[%emt 0:00:02]} Bxg5 {[%emt 0:00:07]} 29. hxg5 {[%emt 0:00:01]}
Qc6 {[%emt 0:00:08]} 30. Qh3 {[%emt 0:00:13]} Nxc3 {[%emt 0:00:07]} 31. Bd3 Nd5
{[%emt 0:00:07]} 32. g4 {[%emt 0:00:03]} Kg7 {[%emt 0:00:18]} 33. gxh5 {
[%emt 0:00:03]} gxh5 {[%emt 0:00:03]} 34. g6 {[%emt 0:00:04]} fxg6 {[%emt 0:00:
03]} 35. Qg3 {[%emt 0:00:01]} Ne7 {[%emt 0:00:05]} 36. Bf4 {[%emt 0:00:01]} Nf5
{[%emt 0:00:04]} 37. Be5+ {[%emt 0:00:00]} Kh7 {[%emt 0:00:01]} 38. Qg5 {
[%emt 0:00:02]} Rf8 {[%emt 0:00:03]} 39. Bxf5 {[%emt 0:00:03]} exf5 {[%emt 0:
00:08]} 40. Qe7+ {[%emt 0:00:01]} Kh6 {[%emt 0:00:01]} 41. Bf4+ {[%emt 0:00:03]
} g5 {[%emt 0:00:03]} 42. Qxg5+ {[%emt 0:00:01]} Kh7 {[%emt 0:00:01]} 43. Re7+
{[%emt 0:00:01]} 1-0

[Event "FIDE Women World Blitz 2021"]
[Site "Warsaw"]
[Date "2021.12.30"]
[Round "10.22"]
[White "Kovanova, Baira"]
[Black "Kulon, Klaudia"]
[Result "1/2-1/2"]
[ECO "C55"]
[WhiteElo "2331"]
[BlackElo "2328"]
[Annotator "NA"]
[PlyCount "178"]
[EventDate "2021.12.29"]
[EventType "swiss"]
[EventCountry "POL"]
[Tiebreak "Cut1 Buchholz"]
[SourceTitle "playchess.com"]
[Source "ChessBase"]
[SourceQuality "1"]
[TimeControl "180+2"]

1. e4 {[%emt 0:00:01]} e5 {[%emt 0:00:01]} 2. Nf3 {[%emt 0:00:02]} Nc6 {
[%emt 0:00:00]} 3. Bc4 {[%emt 0:00:01]} Nf6 {[%emt 0:00:02]} 4. d3 {[%emt 0:00:
01]} h6 {[%emt 0:00:01]} 5. Nc3 {[%emt 0:00:32]} d6 {[%emt 0:00:01]} 6. h3 {
[%emt 0:00:01]} g6 {[%emt 0:00:01]} 7. Be3 {[%emt 0:00:10]} Bg7 {[%emt 0:00:01]
} 8. Qd2 {[%emt 0:00:00]} Na5 {[%emt 0:00:22]} 9. Bb3 {[%emt 0:00:24]} c5 {
[%emt 0:00:08]} 10. Bd5 {[%emt 0:00:43]} Nxd5 {[%emt 0:00:15]} 11. Nxd5 {
[%emt 0:00:02]} Nc6 {[%emt 0:00:05]} 12. c3 {[%emt 0:00:27]} Be6 {[%emt 0:00:
04]} 13. O-O {[%emt 0:00:08]} Bxd5 14. exd5 {[%emt 0:00:01]} Ne7 {[%emt 0:00:
10]} 15. d4 {[%emt 0:00:16]} cxd4 {[%emt 0:00:09]} 16. cxd4 {[%emt 0:00:01]} e4
{[%emt 0:00:01]} 17. Nh2 {[%emt 0:00:10]} Nxd5 {[%emt 0:00:02]} 18. Qc2 {
[%emt 0:00:09]} Nf6 {[%emt 0:00:13]} 19. Ng4 {[%emt 0:00:14]} d5 {[%emt 0:00:
14]} 20. Qc5 {[%emt 0:00:06]} Nxg4 {[%emt 0:00:20]} 21. hxg4 {[%emt 0:00:01]}
Qd7 {[%emt 0:00:01]} 22. Rac1 {[%emt 0:00:03]} Bf8 {[%emt 0:00:16]} 23. Qc7 {
[%emt 0:00:04]} Bd6 {[%emt 0:00:04]} 24. Qa5 {[%emt 0:00:02]} b6 {[%emt 0:00:
07]} 25. Qd2 {[%emt 0:00:07]} Qxg4 {[%emt 0:00:10]} 26. Rc6 {[%emt 0:00:01]}
Qd7 {[%emt 0:00:02]} 27. Rfc1 {[%emt 0:00:01]} O-O {[%emt 0:00:07]} 28. Bxh6 {
[%emt 0:00:01]} Rfc8 {[%emt 0:00:00]} 29. Rxc8+ {[%emt 0:00:04]} Rxc8 {[%emt 0:
00:01]} 30. Rxc8+ Qxc8 {[%emt 0:00:01]} 31. Bf4 {[%emt 0:00:02]} Bf8 {[%emt 0:
00:31]} 32. Be5 {[%emt 0:00:01]} Bg7 {[%emt 0:00:07]} 33. Bxg7 {[%emt 0:00:01]}
Kxg7 {[%emt 0:00:01]} 34. Qf4 {[%emt 0:00:01]} Qc4 {[%emt 0:00:05]} 35. Qe5+ {
[%emt 0:00:01]} Kh7 {[%emt 0:00:04]} 36. Qh2+ {[%emt 0:00:02]} Kg7 {[%emt 0:00:
07]} 37. Qe5+ {[%emt 0:00:02]} Kf8 {[%emt 0:00:02]} 38. b3 {[%emt 0:00:00]} Qc6
{[%emt 0:00:04]} 39. Qb8+ {[%emt 0:00:04]} Kg7 {[%emt 0:00:00]} 40. Qe5+ {
[%emt 0:00:01]} f6 {[%emt 0:00:03]} 41. Qe7+ {[%emt 0:00:01]} Kh6 {[%emt 0:00:
01]} 42. Qxa7 {[%emt 0:00:10]} Qc1+ {[%emt 0:00:03]} 43. Kh2 {[%emt 0:00:01]}
Qf4+ {[%emt 0:00:02]} 44. Kg1 {[%emt 0:00:01]} e3 {[%emt 0:00:00]} 45. fxe3 {
[%emt 0:00:00]} Qxe3+ {[%emt 0:00:01]} 46. Kh2 {[%emt 0:00:01]} Qxd4 {[%emt 0:
00:01]} 47. Qc7 {[%emt 0:00:03]} b5 {[%emt 0:00:06]} 48. Qd8 {[%emt 0:00:03]}
Qe5+ {[%emt 0:00:01]} 49. Kg1 {[%emt 0:00:01]} d4 {[%emt 0:00:02]} 50. a4 {
[%emt 0:00:04]} bxa4 {[%emt 0:00:01]} 51. bxa4 {[%emt 0:00:00]} Qe3+ {[%emt 0:
00:01]} 52. Kh2 {[%emt 0:00:01]} Qf4+ {[%emt 0:00:01]} 53. Kh3 {[%emt 0:00:01]}
Qf5+ {[%emt 0:00:07]} 54. Kg3 {[%emt 0:00:02]} Qe5+ {[%emt 0:00:05]} 55. Kh3 {
[%emt 0:00:00]} Kg5 {[%emt 0:00:02]} 56. a5 {[%emt 0:00:03]} Qf5+ {[%emt 0:00:
03]} 57. Kh2 {[%emt 0:00:02]} d3 {[%emt 0:00:01]} 58. a6 {[%emt 0:00:01]} Qf4+
{[%emt 0:00:01]} 59. g3 {[%emt 0:00:00]} Qf2+ {[%emt 0:00:01]} 60. Kh3 {
[%emt 0:00:01]} d2 {[%emt 0:00:03]} 61. Qd5+ {[%emt 0:00:04]} Kh6 {[%emt 0:00:
04]} 62. a7 {[%emt 0:00:04]} Qf1+ {[%emt 0:00:01]} 63. Kh2 {[%emt 0:00:03]}
d1=Q {[%emt 0:00:02]} 64. Qxd1 {[%emt 0:00:02]} Qxd1 {[%emt 0:00:01]} 65. a8=Q
{[%emt 0:00:02]} Qe2+ {[%emt 0:00:02]} 66. Kh3 {[%emt 0:00:02]} Qe6+ {[%emt 0:
00:02]} 67. Kh2 {[%emt 0:00:05]} Qe2+ {[%emt 0:00:01]} 68. Kh3 {[%emt 0:00:01]}
Kg5 {[%emt 0:00:04]} 69. Qd5+ {[%emt 0:00:01]} Qe5 {[%emt 0:00:05]} 70. Qd2+ {
[%emt 0:00:01]} Kf5 {[%emt 0:00:04]} 71. Qd7+ {[%emt 0:00:02]} Qe6 {[%emt 0:00:
02]} 72. g4+ {[%emt 0:00:07]} Ke5 {[%emt 0:00:01]} 73. Qd3 {[%emt 0:00:03]} f5
{[%emt 0:00:07]} 74. Qe3+ {[%emt 0:00:04]} Kf6 {[%emt 0:00:01]} 75. Qd4+ {
[%emt 0:00:02]} Kf7 {[%emt 0:00:02]} 76. gxf5 {[%emt 0:00:01]} Qxf5+ {[%emt 0:
00:01]} 77. Kg3 {[%emt 0:00:01]} g5 {[%emt 0:00:03]} 78. Qa7+ {[%emt 0:00:01]}
Kg6 {[%emt 0:00:02]} 79. Qb6+ {[%emt 0:00:01]} Kh5 {[%emt 0:00:01]} 80. Qe3 {
[%emt 0:00:02]} Qg4+ {[%emt 0:00:01]} 81. Kh2 {[%emt 0:00:01]} Qh4+ {[%emt 0:
00:04]} 82. Qh3 {[%emt 0:00:01]} g4 {[%emt 0:00:06]} 83. Qxh4+ {[%emt 0:00:02]}
Kxh4 {[%emt 0:00:00]} 84. Kg2 {[%emt 0:00:00]} g3 {[%emt 0:00:01]} 85. Kg1 {
[%emt 0:00:02]} Kg4 86. Kg2 Kf4 87. Kg1 {[%emt 0:00:01]} Kf3 {[%emt 0:00:01]}
88. Kf1 {[%emt 0:00:01]} g2+ {[%emt 0:00:01]} 89. Kg1 {[%emt 0:00:00]} Kg3 {
[%emt 0:00:00]} 1/2-1/2